[Event "Slovakian-ch Youth 2022"]
[Site "Lubovna"]
[Date "2022.05.23"]
[Round "4.4"]
[White "Oruzinsky, Juraj"]
[Black "Pongo, Aron"]
[Result "1-0"]
[ECO "C02"]
[WhiteElo "1656"]
[BlackElo "1566"]
[Annotator "NA COMBH"]
[PlyCount "67"]
[EventDate "2022.05.22"]
[EventCountry "SVK"]
[SourceTitle "playchess.com"]
[Source "ChessBase"]
[SourceQuality "1"]
[TimeControl "40/5400+30:1800+30"]

1. e4 {[%emt 0:00:03]} e6 {[%emt 0:00:01]} 2. d4 {[%emt 0:00:41]} d5 {[%emt 0:00:01]} 3. e5 {[%emt 0:00:17]} c5 {[%emt 0:00:01]} 4. c3 {[%emt 0:00:14]} Nc6 {[%emt 0:00:02]} 5. Nf3 {[%emt 0:00:11]} Qb6 {[%emt 0:00:01]} 6. Be2 {[%emt 0:00:11]} cxd4 {[%emt 0:00:14]} 7. cxd4 {[%emt 0:00:09]} Nge7 {[%emt 0:00:07]} 8. Nc3 {[%emt 0:01:15]} Nf5 {[%emt 0:03:58]} 9. Bb5 {[%emt 0:03:15]} Bd7 {[%emt 0:02:03]} 10. O-O {[%emt 0:04:27]} Ncxd4 {[%emt 0:05:18]} 11. Bxd7+ {[%emt 0:00:40]} Kxd7 {[%emt 0:00:02]} 12. Nxd4 {[%emt 0:06:11]} Qxd4 {[%emt 0:03:48]} 13. Qe2 {[%emt 0:04:16]} Qb6 {[%emt 0:02:10]} 14. Qf3 {[%emt 0:04:03]} d4 {[%emt 0:14:56]} 15. Ne4 {[%emt 0:03:34]} Ke8 {[%emt 0:03:04]} 16. Bg5 {[%emt 0:03:44]} h6 {[%emt 0:06:59]} 17. Bf4 {[%emt 0:03:43]} Nh4 {[%emt 0:02:57]} 18. Qd3 {[%emt 0:01:20]} Ng6 {[%emt 0:01:46]} 19. Bg3 {[%emt 0:00:47]} h5 {[%emt 0:08:50]} 20. h3 {[%emt 0:03:31]} h4 {[%emt 0:00:34]} 21. Bh2 {[%emt 0:00:07]} Rh5 {[%emt 0:03:09]} 22. f4 {[%emt 0:01:59]} Rd8 {[%emt 0:08:47]} 23. Rac1 Be7 {[%emt 0:03:47]} 24. Kh1 {[%emt 0:08:17]} Nf8 {[%emt 0:05:47]} 25. Rc4 {[%emt 0:01:46]} f6 {[%emt 0:03:51]} 26. Rfc1 {[%emt 0:11:15]} fxe5 {[%emt 0:04:54]} 27. fxe5 {[%emt 0:00:20]} Rf5 {[%emt 0:00:36]} 28. Nd6+ {[%emt 0:03:22]} Bxd6 {[%emt 0:02:06]} 29. exd6 {[%emt 0:00:09]} Rf7 {[%emt 0:02:03]} 30. Rxd4 {[%emt 0:03:00]} Qa5 {[%emt 0:02:50]} 31. Rxh4 {[%emt 0:03:25]} Qxa2 {[%emt 0:01:50]} 32. Qb5+ {[%emt 0:00:43]} Rfd7 {[%emt 0:01:23]} 33. Rf1 {[%emt 0:02:30]} Qa6 {[%emt 0:00:42]} 34. Rh8 {[%emt 0:00:28]} 1-0

[Event "Slovakian-ch Youth 2022"]
[Site "Lubovna"]
[Date "2022.05.23"]
[Round "4.5"]
[White "Cedzo, Adam"]
[Black "Brnusak, Tomas"]
[Result "0-1"]
[ECO "B41"]
[WhiteElo "1869"]
[BlackElo "2212"]
[Annotator "TA"]
[PlyCount "102"]
[EventDate "2022.05.22"]
[EventCountry "SVK"]
[SourceTitle "playchess.com"]
[Source "ChessBase"]
[SourceQuality "1"]
[TimeControl "40/5400+30:1800+30"]

{[%evp 12,102,39,16,45,26,41,36,62,62,54,11,27,-37,-22,-36,-40,-22,-26,-46,-41,-56,-70,-81,-69,-63,-60,-62,-56,-57,-50,-92,-92,-106,-108,-135,-131,-154,-151,-146,-134,-191,-169,-185,-176,-172,-173,-204,-197,-282,-278,-306,-290,-246,-230,-224,-147,-250,-253,-249,-254,-286,-291,-275,-261,-310,-310,-310,-310,-310,-308,-298,-283,-543,-543,-543,-531,-486,-476,-5403,-5493,-5397,-2632,-6262,-5302,-6912,-6479,-29975,-29976,-29976,-29977,-29987,-29987]} 1. e4 {[%emt 0:00:19]} c5 {[%emt 0:00:25]} 2. Nf3 {[%emt 0:00:18]} e6 {[%emt 0:00:19]} 3. d4 {[%emt 0:00:49]} cxd4 {[%emt 0:00:12]} 4. Nxd4 {[%emt 0:00:04]} a6 {[%emt 0:00:13]} 5. c4 {[%emt 0:00:59]} Nf6 {[%emt 0:00:07]} 6. Nc3 {[%emt 0:01:31]} Qc7 {[%emt 0:00:06]} 7. Qd3 {[%emt 0:04:29]} b6 {[%emt 0:04:20] B41: Sicilian: Kan Variation: 5 c4.} 8. Be2 {[%emt 0:11:10]} Bb7 {[%emt 0:01:32]} 9. Be3 {[%emt 0:04:16]} d6 {[%emt 0:00:51] White is slightly better.} 10. f3 {[%emt 0:01:45]} Nbd7 {[%emt 0:00:36] [#]} 11. a4 $146 {[%emt 0:03:29]} ({Predecessor:} 11. b3 Be7 12. g4 O-O 13. g5 Ne5 14. Qd2 Nfd7 15. f4 Nc6 16. O-O-O b5 17. cxb5 Nxd4 18. Bxd4 Bxe4 {0-1 (29) Sokolovsky,Y (2442)-Carlsen,M (2847) chess24.com INT 2021}) 11... Be7 {[%emt 0:10:59]} (11... Ne5 $5 {[%cal Re5d3]} 12. Qc2 Rc8 $11) 12. a5 {[%emt 0:07:21]} ({Better is} 12. Qd2 $11) 12... Nc5 $15 {[%emt 0:02:40]} 13. Qd1 {[%emt 0:02:17]} bxa5 {[%emt 0:00:47]} 14. Nb3 {[%emt 0:01:50]} Nxb3 {[%emt 0:08:02]} 15. Qxb3 {[%emt 0:00:11]} Bc6 {[%emt 0:01:31] Prevents Qa4.} 16. O-O {[%emt 0:16:05]} O-O {[%emt 0:07:35]} 17. Ra2 {[%emt 0:03:21]} Rfb8 {[%emt 0:03:45]} 18. Qc2 {[%emt 0:01:08]} Bd8 {[%emt 0:00:33]} 19. Rd1 {[%emt 0:02:57]} Qe7 {[%emt 0:03:29]} 20. Bf4 {[%emt 0:05:36]} Bc7 {[%emt 0:01:07]} 21. Rda1 {[%emt 0:01:42][%cal Oc4c5]} Nd7 {[%emt 0:02:37][%cal Bf6d7,Bd7c5,Bc5b3][%mdl 32]} 22. Bd2 {[%emt 0:05:21]} Nc5 {[%emt 0:01:11]} 23. Ra3 {[%emt 0:00:48]} Rb7 {[%emt 0:06:44]} 24. Nd1 {[%emt 0:03:41]} Rab8 {[%emt 0:00:40]} 25. Be3 {[%emt 0:02:23]} Nb3 {[%emt 0:06:41] Black is more active.} 26. R1a2 {[%emt 0:00:16]} (26. Rb1 $17) 26... Qf6 {[%emt 0:01:06]} 27. Bd3 {[%emt 0:04:17] [#]} Bb6 $1 {[%emt 0:02:23]} 28. Bxb6 {[%emt 0:02:03]} (28. Qf2 Bxe3) 28... Rxb6 {[%emt 0:00:06]} 29. Nc3 {[%emt 0:01:46]} Qg5 {[%emt 0:02:54] aiming for ...Qe3+.} 30. Ne2 {[%emt 0:00:57]} (30. Nd1 $142) 30... Qe3+ {[%emt 0:00:58]} 31. Kf1 {[%emt 0:00:43]} g5 {[%emt 0:05:38][%cal Og5g4]} (31... Nd2+ $2 32. Ke1 Nb3 33. Qc3 $19) 32. Qc3 {[%emt 0:02:37]} e5 {[%emt 0:00:21][%cal Og5g4]} (32... Nd2+ 33. Ke1 Nb3 34. Bc2 Qxc3+ 35. Nxc3 $15) 33. Ke1 {[%emt 0:02:33]} Nd4 {[%emt 0:04:58]} ({Weaker is} 33... g4 34. Bc2 Qxc3+ 35. Nxc3) 34. Qc1 {[%emt 0:05:43]} (34. Qd2 $17 Qxd2+ 35. Kxd2) 34... Qxc1+ $19 {[%emt 0:00:33]} 35. Nxc1 {[%emt 0:00:30]} a4 {[%emt 0:01:13]} ({Inferior is} 35... Rxb2 36. Rxa5 Rxa2 37. Rxa2 $17) 36. Ne2 {[%emt 0:00:10]} Nxe2 {[%emt 0:04:31]} ({Don't blunder} 36... Rxb2 $2 37. Nc3 $19) 37. Kxe2 {[%emt 0:00:20]} Rxb2+ {[%emt 0:00:05]} 38. Bc2 {[%emt 0:00:09]} Rxa2 {[%emt 0:00:11]} 39. Rxa2 {[%emt 0:00:07][%mdl 4096] Endgame KRB-KRB} Rb4 {[%emt 0:00:07]} 40. Kd3 {[%emt 0:00:26]} Kf8 {[%emt 0:00:19]} 41. Kc3 {[%emt 0:05:20]} a5 {[%emt 0:00:35]} 42. Rb2 $2 {[%emt 0:00:58]} (42. Ra1 {was worth a try.}) 42... Rxb2 {[%emt 0:02:10]} 43. Kxb2 {[%emt 0:00:27] KB-KB} Ke7 {[%emt 0:00:06]} 44. Ka3 {[%emt 0:00:30]} Kd7 {[%emt 0:00:06]} 45. Bxa4 {[%emt 0:00:17]} (45. Kb2 $142 Kc7 46. Bd3) 45... Bxa4 {[%emt 0:00:51]} 46. Kxa4 {[%emt 0:01:06] [#] KP-KP} Kc6 $1 {[%emt 0:00:04]} 47. Kxa5 {[%emt 0:01:34]} Kc5 {[%emt 0:00:05] White must now prevent ...g4.} 48. Ka6 {[%emt 0:00:18]} Kxc4 {[%emt 0:00:08] ( -> ...d5)} 49. Kb6 {[%emt 0:00:05]} d5 {[%emt 0:00:04] Black mates.} 50. exd5 {[%emt 0:00:19]} Kxd5 {[%emt 0:00:04]} 51. Kc7 {[%emt 0:00:11]} f5 {[%emt 0:00:05] Black took control after the opening.  Weighted Error Value: White=0.78/Black=0.07 (flawless)} 0-1

[Event "Slovakian-ch Youth 2022"]
[Site "Lubovna"]
[Date "2022.05.23"]
[Round "4.5"]
[White "Demjan, David"]
[Black "Durana, Jonas"]
[Result "0-1"]
[ECO "A89"]
[WhiteElo "1375"]
[BlackElo "1644"]
[Annotator "NA COMBH"]
[PlyCount "61"]
[EventDate "2022.05.22"]
[EventCountry "SVK"]
[SourceTitle "playchess.com"]
[Source "ChessBase"]
[SourceQuality "1"]
[TimeControl "40/5400+30:1800+30"]

1. Nf3 {[%emt 0:00:08]} f5 {[%emt 0:00:05]} 2. g3 {[%emt 0:00:42]} g6 {[%emt 0:00:18]} 3. Bg2 {[%emt 0:00:30]} Bg7 {[%emt 0:00:04]} 4. d4 {[%emt 0:00:36]} Nf6 {[%emt 0:00:06]} 5. c4 {[%emt 0:00:43]} O-O {[%emt 0:00:17]} 6. O-O {[%emt 0:00:09]} d6 {[%emt 0:00:08]} 7. Nc3 {[%emt 0:00:58]} Nc6 {[%emt 0:00:09]} 8. e3 {[%emt 0:01:53]} e5 {[%emt 0:00:51]} 9. d5 {[%emt 0:03:51]} Ne7 {[%emt 0:00:43]} 10. Ne2 {[%emt 0:02:07]} h6 {[%emt 0:03:08]} 11. h3 {[%emt 0:01:50]} Kh8 {[%emt 0:03:55]} 12. Nh2 {[%emt 0:01:12]} g5 {[%emt 0:02:55]} 13. f4 {[%emt 0:00:20]} gxf4 {[%emt 0:00:46]} 14. exf4 {[%emt 0:00:14]} e4 {[%emt 0:00:31]} 15. Be3 {[%emt 0:00:26]} Rg8 {[%emt 0:02:14]} 16. Bd4 {[%emt 0:04:29]} Qe8 {[%emt 0:04:29]} 17. Rf2 {[%emt 0:04:49]} Qg6 {[%emt 0:09:12]} 18. h4 {[%emt 0:04:16]} Nh5 {[%emt 0:05:29]} 19. Nf1 {[%emt 0:00:24]} Bd7 {[%emt 0:06:01]} 20. Rc1 {[%emt 0:06:38]} b6 {[%emt 0:09:51]} 21. b3 {[%emt 0:09:17]} Rae8 {[%emt 0:04:07]} 22. Bh3 {[%emt 0:04:26]} c5 {[%emt 0:07:59]} 23. Bc3 {[%emt 0:09:51]} b5 {[%emt 0:02:27]} 24. Rg2 {[%emt 0:01:23]} b4 {[%emt 0:00:54]} 25. Bxg7+ {[%emt 0:01:30]} Qxg7 {[%emt 0:03:50]} 26. Nd2 {[%emt 0:00:47]} Nf6 {[%emt 0:02:47]} 27. Kh2 {[%emt 0:00:51]} Ng4+ {[%emt 0:02:45]} 28. Bxg4 {[%emt 0:00:47]} Qxg4 {[%emt 0:00:32]} 29. Ra1 {[%emt 0:01:35]} Ng6 {[%emt 0:00:51]} 30. Qg1 {[%emt 0:01:29]} Nxh4 {[%emt 0:00:19]} 31. Qf2 0-1

[Event "Slovakian-ch Youth 2022"]
[Site "Lubovna"]
[Date "2022.05.23"]
[Round "4.6"]
[White "Vadila, Ondrej"]
[Black "Nadzamova, Viktoria"]
[Result "1/2-1/2"]
[ECO "B47"]
[WhiteElo "2082"]
[BlackElo "2135"]
[Annotator "TA"]
[PlyCount "41"]
[EventDate "2022.05.22"]
[EventCountry "SVK"]
[SourceTitle "playchess.com"]
[Source "ChessBase"]
[SourceQuality "1"]
[TimeControl "40/5400+30:1800+30"]

{[%evp 10,41,44,24,26,0,0,13,18,12,21,23,69,0,35,23,36,10,66,47,31,0,0,-12,0,0,7,-59,11,7,14,6,3,0]} 1. e4 {[%emt 0:00:07]} c5 {[%emt 0:01:28]} 2. Nf3 {[%emt 0:00:07][%cal Bg1f3,Bf3d4,Bd4b3][%mdl 32]} e6 {[%emt 0:00:11]} 3. d4 {[%emt 0:00:05]} cxd4 {[%emt 0:00:06]} 4. Nxd4 {[%emt 0:00:05]} Nc6 {[%emt 0:00:27]} 5. Nc3 {[%emt 0:00:34]} Qc7 {[%emt 0:02:15]} 6. Nb3 {[%emt 0:03:34]} a6 {[%emt 0:02:31] B47: Sicilian: Taimanov: 5 Nc3 Qc7 6 f4, 6 g3 and 6 Be2.} 7. a4 {[%emt 0:02:26]} Nf6 {[%emt 0:01:13]} 8. g3 {[%emt 0:05:22]} Bb4 {[%emt 0:02:36] [#] And now ...Nxe4 would win.} 9. Bg2 {[%emt 0:00:15]} O-O {[%emt 0:08:06][%cal Od7d5]} 10. O-O {[%emt 0:13:46]} Be7 {[%emt 0:14:30]} (10... h6 $11 {was preferrable.}) 11. Be3 {[%emt 0:10:07]} ({White should play} 11. a5 $14) 11... b6 {[%emt 0:03:22] [#]} 12. f4 $146 {[%emt 0:01:15]} ({Predecessor:} 12. a5 bxa5 13. Nd5 exd5 14. exd5 Nb4 15. d6 Bxd6 16. Bxa8 Nxc2 17. Rc1 Nxe3 18. fxe3 {1-0 (41) Jansa,V (2521)-Ruiz Diez,J (2319) Spain 2006}) 12... Bb7 {[%emt 0:03:53]} 13. Qe2 {[%emt 0:04:07]} d6 {[%emt 0:03:56] Against e5} ({Black should try} 13... Nb4 $11) 14. Rad1 {[%emt 0:05:44] White is more active.} Rad8 {[%emt 0:04:31]} 15. f5 {[%emt 0:10:41]} exf5 {[%emt 0:03:23]} 16. exf5 {[%emt 0:01:25]} Ne5 {[%emt 0:01:11] Inhibits g4.} 17. Bg5 {[%emt 0:01:02]} Rfe8 {[%emt 0:05:31]} 18. Rfe1 {[%emt 0:06:41] [#]} (18. Bxf6 $11 Bxf6 19. Bxb7 Qxb7 20. Nd5) 18... Qc8 {[%emt 0:03:54]} (18... d5 $1 $15) 19. Bxf6 $11 {[%emt 0:02:06] The position is equal.} Bxf6 {[%emt 0:02:03]} 20. Bxb7 {[%emt 0:00:29]} Qxb7 {[%emt 0:00:03]} 21. Nd5 {[%emt 0:00:14] Weighted Error Value: White=0.20 (precise) /Black=0.22 (precise)} 1/2-1/2

[Event "Slovakian-ch Youth 2022"]
[Site "Lubovna"]
[Date "2022.05.23"]
[Round "4.6"]
[White "Vargosko, Juraj"]
[Black "Paholok, Adam"]
[Result "1-0"]
[ECO "A58"]
[WhiteElo "1640"]
[BlackElo "1449"]
[Annotator "NA COMBH"]
[PlyCount "121"]
[EventDate "2022.05.22"]
[EventCountry "SVK"]
[SourceTitle "playchess.com"]
[Source "ChessBase"]
[SourceQuality "1"]
[TimeControl "40/5400+30:1800+30"]

1. d4 {[%emt 0:00:10]} Nf6 {[%emt 0:00:08]} 2. c4 {[%emt 0:00:06]} c5 {[%emt 0:00:03]} 3. d5 {[%emt 0:01:20]} b5 {[%emt 0:00:10]} 4. cxb5 {[%emt 0:00:13]} a6 {[%emt 0:00:08]} 5. bxa6 {[%emt 0:01:06]} g6 {[%emt 0:00:16]} 6. g3 {[%emt 0:00:41]} d6 {[%emt 0:00:48]} 7. Bg2 {[%emt 0:01:20]} Bxa6 {[%emt 0:00:15]} 8. Nc3 {[%emt 0:00:22]} Bg7 {[%emt 0:00:13]} 9. e4 {[%emt 0:02:13]} O-O {[%emt 0:01:33]} 10. Nge2 {[%emt 0:00:58]} Nbd7 {[%emt 0:01:42]} 11. O-O {[%emt 0:01:59]} Qb6 {[%emt 0:01:52]} 12. f4 {[%emt 0:05:51]} Ng4 {[%emt 0:05:36]} 13. Na4 {[%emt 0:07:13]} Qa7 {[%emt 0:04:31]} 14. Bh3 {[%emt 0:12:59]} Bxe2 {[%emt 0:05:18]} 15. Qxe2 {[%emt 0:00:32]} Qxa4 {[%emt 0:00:13]} 16. Bxg4 {[%emt 0:00:37]} Nf6 {[%emt 0:01:01]} 17. Bf3 {[%emt 0:00:23]} Rfb8 {[%emt 0:00:41]} 18. e5 {[%emt 0:04:58]} Nd7 {[%emt 0:04:18]} 19. e6 {[%emt 0:03:02]} Bd4+ {[%emt 0:02:19]} 20. Be3 {[%emt 0:02:26]} Rxb2 {[%emt 0:00:33]} 21. Qd3 {[%emt 0:02:23]} Nf6 {[%emt 0:05:54]} 22. exf7+ {[%emt 0:11:44]} Kxf7 {[%emt 0:00:13]} 23. Bxd4 {[%emt 0:10:12]} Qxd4+ {[%emt 0:00:09]} 24. Qxd4 {[%emt 0:00:05]} cxd4 {[%emt 0:00:06]} 25. Rf2 {[%emt 0:01:55]} Rxf2 {[%emt 0:02:15]} 26. Kxf2 {[%emt 0:00:07]} Ra5 {[%emt 0:00:22]} 27. a4 {[%emt 0:00:23]} Nxd5 {[%emt 0:00:35]} 28. Bxd5+ {[%emt 0:00:18]} Rxd5 {[%emt 0:00:58]} 29. a5 {[%emt 0:00:30]} Rb5 {[%emt 0:00:27]} 30. a6 {[%emt 0:02:48]} Rb8 {[%emt 0:01:39]} 31. Kf3 {[%emt 0:02:30]} Ke6 {[%emt 0:07:52]} 32. Ke4 {[%emt 0:01:02]} Kd7 {[%emt 0:00:26]} 33. Kxd4 {[%emt 0:02:20]} Kc6 {[%emt 0:00:41]} 34. g4 {[%emt 0:02:23]} e6 {[%emt 0:08:20]} 35. a7 {[%emt 0:03:02]} Ra8 {[%emt 0:01:35]} 36. Ra6+ {[%emt 0:00:44]} Kc7 {[%emt 0:00:53]} 37. Kc4 {[%emt 0:08:33]} Kd7 {[%emt 0:15:04]} 38. Kb5 {[%emt 0:00:36]} Kc7 {[%emt 0:01:54]} 39. h3 {[%emt 0:00:29]} h6 {[%emt 0:01:32]} 40. h4 {[%emt 0:00:13]} h5 {[%emt 0:01:13]} 41. g5 {[%emt 0:30:27]} e5 {[%emt 0:36:15]} 42. fxe5 {[%emt 0:00:34]} dxe5 {[%emt 0:00:13]} 43. Rxg6 {[%emt 0:00:33]} e4 {[%emt 0:02:03]} 44. Ra6 {[%emt 0:00:00]} Kb7 {[%emt 0:00:00]} 45. Ra3 {[%emt 0:00:00]} Rxa7 {[%emt 0:00:00]} 46. Rxa7+ {[%emt 0:00:00]} Kxa7 {[%emt 0:00:00]} 47. Kc4 {[%emt 0:00:00]} Kb7 {[%emt 0:00:00]} 48. g6 {[%emt 0:00:00]} Kc6 {[%emt 0:00:00]} 49. g7 {[%emt 0:00:00]} e3 {[%emt 0:00:00]} 50. Kd3 {[%emt 0:00:00]} e2 {[%emt 0:00:00]} 51. Kxe2 {[%emt 0:00:00]} Kd5 {[%emt 0:00:00]} 52. g8=Q+ {[%emt 0:00:00]} Ke5 {[%emt 0:00:00]} 53. Ke3 {[%emt 0:00:00]} Kf6 {[%emt 0:00:00]} 54. Kf4 {[%emt 0:00:00]} Ke7 {[%emt 0:00:00]} 55. Qd5 {[%emt 0:00:00]} Kf6 {[%emt 0:00:00]} 56. Qe5+ {[%emt 0:00:00]} Kg6 {[%emt 0:00:00]} 57. Qf5+ {[%emt 0:00:00]} Kh6 {[%emt 0:00:00]} 58. Qg5+ {[%emt 0:00:00]} Kh7 {[%emt 0:00:00]} 59. Kf5 {[%emt 0:00:00]} Kh8 {[%emt 0:00:00]} 60. Kf6 {[%emt 0:00:00]} Kh7 {[%emt 0:00:00]} 61. Qg7# {[%emt 0:00:00]} 1-0

[Event "Slovakian-ch Youth 2022"]
[Site "Lubovna"]
[Date "2022.05.23"]
[Round "4.7"]
[White "Rucek, Kristian"]
[Black "Kapec, Kristian"]
[Result "1-0"]
[ECO "A52"]
[WhiteElo "2128"]
[BlackElo "1902"]
[Annotator "TA"]
[PlyCount "61"]
[EventDate "2022.05.22"]
[EventCountry "SVK"]
[SourceTitle "playchess.com"]
[Source "ChessBase"]
[SourceQuality "1"]
[TimeControl "40/5400+30:1800+30"]

{[%evp 9,61,26,18,25,23,18,75,67,114,107,105,104,160,147,144,122,145,154,241,244,551,545,497,487,556,514,537,522,507,292,358,333,1395,1402,1392,1387,1368,1355,1337,1271,1714,1687,2254,2231,1837,1675,29989,29990,29989,29990,29990,29991,29992,29993]} 1. d4 {[%emt 0:00:06]} Nf6 {[%emt 0:00:07]} 2. c4 {[%emt 0:00:14]} e5 {[%emt 0:00:10]} 3. dxe5 {[%emt 0:00:52]} Ng4 {[%emt 0:00:05]} 4. e4 {[%emt 0:00:20]} Nxe5 {[%emt 0:00:16]} 5. f4 {[%emt 0:00:06]} Nec6 {[%emt 0:00:26]} 6. Nc3 {[%emt 0:00:13] A52: Budapest Gambit.} Bc5 {[%emt 0:00:50] Against Be3} 7. Na4 {[%emt 0:00:12]} Bxg1 {[%emt 0:00:23]} (7... Bb4+ $11 {remains equal.} 8. Kf2 Be7) 8. Rxg1 $16 {[%emt 0:00:02] White is better.} Qh4+ {[%emt 0:03:14]} (8... Na6 $14) 9. g3 {[%emt 0:00:05]} Qxh2 {[%emt 0:00:23] [#]} 10. Rg2 {[%emt 0:00:05] [#]} Qh3 $146 {[%emt 0:01:09] [#]} (10... Qh6 $142) ({Predecessor:} 10... Qh1 11. f5 O-O 12. Be3 Re8 13. Nc3 d6 14. Qe2 Ne5 15. O-O-O Qh3 16. Bf4 Bxf5 {1-0 (37) Anuj,S (2095)-Tan,J (1850) Tornelo INT 2021}) 11. f5 $1 {[%emt 0:03:00][%mdl 1024] White has strong compensation. White is more active.} Ne5 {[%emt 0:06:32]} 12. Bf4 {[%emt 0:05:00][%cal Bc1f4,Bf4e5,Be5f6][%mdl 32]} Nbc6 {[%emt 0:02:07]} 13. Qd5 {[%emt 0:13:16]} Nf3+ {[%emt 0:06:54]} (13... f6 $16) 14. Kf2 $18 {[%emt 0:01:19]} Nh2 {[%emt 0:03:01] [#]} (14... Nfd4 {is tougher.}) 15. Rxh2 $1 {[%emt 0:06:00][%mdl 512]} Qxh2+ {[%emt 0:00:18]} 16. Bg2 {[%emt 0:00:04]} g5 {[%emt 0:03:21]} (16... d6 $2 17. Rh1 Qxh1 18. Bxh1) 17. Be5 {[%emt 0:03:07]} ({Less strong is} 17. Rh1 Qxh1 18. Bxh1 gxf4 19. gxf4 b6 $18) 17... f6 {[%emt 0:15:28]} 18. Bxf6 {[%emt 0:00:53] Hoping for Rh1.} Rf8 {[%emt 0:00:09]} 19. Bg7 {[%emt 0:04:28] Against Qh6} Ne7 {[%emt 0:01:05]} (19... Rf7 $2 20. Rh1 Qxh1 21. Bxh1 $18) 20. Qd4 {[%emt 0:05:07] Dancing on a razor blade.} Nxf5 $2 {[%emt 0:01:47]} (20... Rf7 21. Rh1 Nxf5 22. Qe5+ Ne7+ 23. Bf6 d6) 21. Qe5+ {[%emt 0:01:06]} Ne7+ {[%emt 0:04:35]} 22. Bxf8 {[%emt 0:00:05]} Kxf8 {[%emt 0:00:03]} 23. Rh1 {[%emt 0:00:26]} Qxh1 {[%emt 0:00:18]} 24. Bxh1 {[%emt 0:00:02] Threatening mate with Qf6+.} Ng6 {[%emt 0:00:45]} 25. Qf6+ {[%emt 0:00:31]} Kg8 {[%emt 0:00:32]} 26. e5 {[%emt 0:00:11][%cal Rh1d5]} c6 {[%emt 0:00:17] Against Bd5+} 27. Be4 {[%emt 0:00:19]} b5 {[%emt 0:01:36]} 28. Bxg6 {[%emt 0:00:10] White mates.} hxg6 {[%emt 0:00:06]} 29. Qxg6+ {[%emt 0:00:03]} Kf8 {[%emt 0:00:24]} 30. Nc5 {[%emt 0:00:14]} Rb8 {[%emt 0:00:56]} 31. Qd6+ {[%emt 0:00:06] Black got outplayed after the opening.  Weighted Error Value: White=0.19 (very precise) /Black=0.75} 1-0

[Event "Slovakian-ch Youth 2022"]
[Site "Lubovna"]
[Date "2022.05.23"]
[Round "4.7"]
[White "Gollner, Martin"]
[Black "Carnecky, Viliam"]
[Result "1-0"]
[ECO "B10"]
[WhiteElo "1585"]
[BlackElo "1380"]
[Annotator "NA COMBH"]
[PlyCount "55"]
[EventDate "2022.05.22"]
[EventCountry "SVK"]
[SourceTitle "playchess.com"]
[Source "ChessBase"]
[SourceQuality "1"]
[TimeControl "40/5400+30:1800+30"]

1. e4 {[%emt 0:10:04]} c6 {[%emt 0:00:21]} 2. c4 {[%emt 0:00:08]} d5 {[%emt 0:01:47]} 3. cxd5 {[%emt 0:00:06]} cxd5 {[%emt 0:00:27]} 4. exd5 {[%emt 0:00:04]} Qxd5 {[%emt 0:02:11]} 5. Nc3 {[%emt 0:00:05]} Qd8 {[%emt 0:01:15]} 6. Nf3 {[%emt 0:00:18]} Nc6 {[%emt 0:01:01]} 7. Bc4 {[%emt 0:03:16]} Nf6 {[%emt 0:02:08]} 8. d4 {[%emt 0:05:51]} e6 {[%emt 0:04:02]} 9. O-O {[%emt 0:02:04]} Bd6 {[%emt 0:06:22]} 10. d5 {[%emt 0:07:32]} exd5 {[%emt 0:07:01]} 11. Re1+ {[%emt 0:00:50]} Ne7 {[%emt 0:03:55]} 12. Nxd5 {[%emt 0:01:42]} Nfxd5 {[%emt 0:03:41]} 13. Qxd5 {[%emt 0:03:53]} O-O {[%emt 0:01:32]} 14. Qd3 {[%emt 0:04:07]} Be6 {[%emt 0:06:49]} 15. Ng5 {[%emt 0:01:30]} Bf5 {[%emt 0:02:16]} 16. Qb3 {[%emt 0:00:49]} Bg6 {[%emt 0:02:55]} 17. Qxb7 {[%emt 0:01:05]} h6 {[%emt 0:04:41]} 18. Ne4 {[%emt 0:04:39]} Qa5 {[%emt 0:03:44]} 19. Bd2 {[%emt 0:11:57]} Bxe4 {[%emt 0:06:36]} 20. Qxa8 {[%emt 0:00:07]} Qxd2 {[%emt 0:01:29]} 21. Qxe4 {[%emt 0:00:07]} Qxb2 {[%emt 0:00:38]} 22. Rab1 {[%emt 0:01:31]} Qf6 {[%emt 0:00:55]} 23. Rb7 {[%emt 0:04:29]} Bc5 {[%emt 0:03:19]} 24. Rxe7 {[%emt 0:03:58]} Bxf2+ {[%emt 0:01:49]} 25. Kh1 {[%emt 0:00:03]} Bxe1 {[%emt 0:00:12]} 26. Qxe1 {[%emt 0:00:04]} Qb6 {[%emt 0:01:13]} 27. Qf1 {[%emt 0:02:21]} Qc5 {[%emt 0:01:29]} 28. Rxf7 {[%emt 0:01:19]} 1-0

[Event "Slovakian-ch Youth 2022"]
[Site "Lubovna"]
[Date "2022.05.23"]
[Round "4.8"]
[White "Chlpek, Daniel"]
[Black "Petrek, Dominik"]
[Result "1/2-1/2"]
[ECO "D14"]
[WhiteElo "2030"]
[BlackElo "2110"]
[Annotator "TA"]
[PlyCount "41"]
[EventDate "2022.05.22"]
[EventCountry "SVK"]
[SourceTitle "playchess.com"]
[Source "ChessBase"]
[SourceQuality "1"]
[TimeControl "40/5400+30:1800+30"]

{[%evp 24,25,12,-8]} 1. d4 {[%emt 0:00:11]} d5 {[%emt 0:00:36]} 2. Nf3 {[%emt 0:00:41]} Nf6 {[%emt 0:00:45]} 3. c4 {[%emt 0:00:39]} c6 {[%emt 0:02:48]} 4. cxd5 {[%emt 0:01:21]} cxd5 {[%emt 0:00:16]} 5. Nc3 {[%emt 0:04:22]} Nc6 {[%emt 0:00:11]} 6. Bf4 {[%emt 0:00:08]} Bf5 {[%emt 0:02:36]} 7. e3 {[%emt 0:00:17]} e6 {[%emt 0:00:34]} 8. Bd3 {[%emt 0:00:06]} Bxd3 {[%emt 0:00:27]} 9. Qxd3 {[%emt 0:00:06]} Be7 {[%emt 0:09:48]} 10. h3 {[%emt 0:02:10]} O-O {[%emt 0:03:01]} 11. O-O {[%emt 0:01:43]} Rc8 {[%emt 0:02:37]} 12. Rfc1 {[%emt 0:01:10]} a6 {[%emt 0:11:01]} 13. Ne5 {[%emt 0:01:06] [#]} {Predecessor:} Nxe5 $146 {D14: Slav Defence: Exchange variation with ...Bf5.} 14. Bxe5 Qd7 15. Rc2 Rc6 16. Rac1 Rfc8 17. Bxf6 Bxf6 18. Na4 Rxc2 19. Rxc2 Rxc2 20. Qxc2 Be7 21. b3 {½-½ (31) Cordova,E (2587)-Bruzon Batista,L (2672) Merida 2017} 1/2-1/2